fUSD/lending_fUSD_20240210
["ID","MTS","AMOUNT","RATE_DAILY","PERIOD"]
[313715546,1707601871929,-500.0,0.00039726,30]
[313715547,1707601871939,-500.0,0.00039726,30]
[313715548,1707601871948,-500.0,0.00039726,30]
[313715549,1707601871958,-500.0,0.00039726,30]
[313715550,1707601871968,-500.0,0.00039726,30]
[313715551,1707601871978,-500.0,0.00039726,30]
[313715552,1707601871988,-500.0,0.00039726,30]
[313715553,1707601871997,-500.0,0.00039726,30]
[313715554,1707601872007,-527.66,0.00039726,30]
[313715555,1707601872017,-500.0,0.00039726,30]
[313715556,1707601872027,-500.0,0.00039726,30]
[313715557,1707601872036,-500.0,0.00039726,30]
[313715558,1707601872046,-500.0,0.00039726,30]
[313715559,1707601872056,-500.0,0.00039726,30]
[313715560,1707601872065,-500.0,0.00039726,30]
[313715561,1707601872075,-500.0,0.00039726,30]
[313715562,1707601872084,-500.0,0.00039726,7]
[313715563,1707601872093,-500.0,0.00039726,30]
[313715564,1707601872112,-500.0,0.00039726,30]
[313715565,1707601872123,-500.0,0.00039726,30]
[313715566,1707601872133,-500.0,0.00039726,30]
[313715567,1707601872142,-163.24484032,0.00039726,30]
[313715568,1707601872152,-500.0,0.00039726,30]
[313715569,1707601872162,-500.0,0.00039726,30]
[313715570,1707601872171,-626.88,0.00039726,30]
[313715571,1707601872181,-500.0,0.00039726,30]
[313715572,1707601872191,-500.0,0.00039726,30]
[313715573,1707601872200,-500.0,0.00039726,30]
[313715574,1707601872210,-500.0,0.00039726,30]
[313715575,1707601872220,-829.35,0.00039726,30]
[313715576,1707601872230,-500.0,0.00039726,30]
[313715577,1707601872240,-582.77,0.00039726,30]
[313715578,1707601872250,-500.0,0.00039726,30]
[313715579,1707601872261,-500.0,0.00039726,30]
[313715580,1707601872270,-673.15,0.00039726,30]
[313715581,1707601872280,-500.0,0.00039726,30]
[313715582,1707601872290,-635.99,0.00039726,30]
[313715583,1707601872300,-1007.19,0.00039726,30]
[313715584,1707601872310,-500.0,0.00039726,30]
[313715585,1707601872321,-500.0,0.00039726,30]
[313715586,1707601872330,-763.66,0.00039726,30]
[313715587,1707601872340,-500.0,0.00039726,30]
[313715588,1707601872350,-500.0,0.00039726,30]
[313715589,1707601872360,-500.0,0.00039726,30]
[313715590,1707601872370,-534.16,0.00039726,30]
[313715591,1707601872379,-500.0,0.00039726,30]
[313715592,1707601872389,-500.0,0.00039726,30]
[313715593,1707601872398,-500.0,0.00039726,30]
[313715594,1707601872407,-838.11,0.00039726,30]
[313715595,1707601872416,-250.0,0.00039726,30]
[313715596,1707601872425,-1102.36,0.00039726,30]
[313715597,1707601872436,-500.0,0.00039726,30]
[313715598,1707601872446,-500.0,0.00039726,30]
[313715599,1707601872456,-500.0,0.00039726,30]
[313715600,1707601872467,-500.0,0.00039726,30]
[313715601,1707601872477,-500.0,0.00039726,30]
[313715602,1707601872487,-500.0,0.00039726,30]
[313715603,1707601872498,-500.0,0.00039726,30]
[313715604,1707601872508,-600.03,0.00039726,30]
[313715605,1707601872518,-500.0,0.00039726,30]
[313715606,1707601872528,-500.0,0.00039726,30]
[313715607,1707601872538,-624.85032983,0.00039726,30]
[313715608,1707601872547,-500.0,0.00039726,30]
[313715609,1707601872557,-642.55,0.00039726,30]
[313715610,1707601872571,-976.35,0.00039726,30]
[313715611,1707601872581,-717.72,0.00039726,30]
[313715612,1707601872591,-500.0,0.00039726,30]
[313715613,1707601872602,-500.0,0.00039726,30]
[313715614,1707601872612,-500.0,0.00039726,30]
[313715615,1707601872623,-500.0,0.00039726,30]
[313715616,1707601872632,-500.0,0.00039726,30]
[313715617,1707601872643,-554.63,0.00039726,30]
[313715618,1707601872653,-500.0,0.00039726,30]
[313715619,1707601872664,-732.11,0.00039726,30]
[313715620,1707601872675,-500.0,0.00039726,30]
[313715621,1707601872685,-713.83,0.00039726,30]
[313715622,1707601872695,-543.49,0.00039726,30]
[313715623,1707601872705,-500.0,0.00039726,30]
[313715624,1707601872715,-500.0,0.00039726,30]
[313715625,1707601872725,-500.0,0.00039726,30]
[313715626,1707601872734,-500.0,0.00039726,30]
[313715627,1707601872745,-500.0,0.00039726,30]
[313715628,1707601872755,-500.0,0.00039726,30]
[313715629,1707601872765,-249.57,0.00039726,30]
[313715630,1707601872774,-500.0,0.00039726,30]
[313715631,1707601872784,-541.0,0.00039726,30]
[313715632,1707601872794,-500.0,0.00039726,30]
[313715633,1707601872803,-500.0,0.00039726,30]
[313715634,1707601872813,-1034.04,0.00039726,30]
[313715635,1707601872822,-162.93558614,0.00039726,30]
[313715636,1707601872832,-500.0,0.00039726,30]
[313715637,1707601872842,-500.0,0.00039726,30]
[313715638,1707601872851,-795.66,0.00039726,30]
[313715639,1707601872861,-534.28,0.00039726,30]
[313715640,1707601872871,-500.0,0.00039726,30]
[313715641,1707601872880,-908.38,0.00039726,30]
[313715642,1707601872889,-500.0,0.00039726,30]
[313715643,1707601872898,-500.0,0.00039726,30]
[313715644,1707601872909,-500.0,0.00039726,30]
[313715645,1707601872918,-731.71,0.00039726,30]
[313715646,1707601872928,-500.0,0.00039726,30]
[313715647,1707601872938,-379.99506934,0.00039726,30]
[313715648,1707601872948,-500.0,0.00039726,30]
[313715649,1707601872957,-500.0,0.00039726,30]
[313715650,1707601872968,-515.27,0.00039726,30]
[313715651,1707601872977,-500.0,0.00039726,30]
[313715652,1707601872987,-500.0,0.00039726,30]
[313715653,1707601872996,-500.0,0.00039726,30]
[313715654,1707601873006,-884.33,0.00039726,30]
[313715655,1707601873016,-767.36,0.00039726,30]
[313715656,1707601873025,-500.0,0.00039726,30]
[313715657,1707601873035,-500.0,0.00039726,30]
[313715658,1707601873044,-547.76,0.00039726,30]
[313715659,1707601873055,-737.52,0.00039726,30]
[313715660,1707601873064,-500.0,0.00039726,30]
[313715661,1707601873075,-500.0,0.00039726,30]
[313715662,1707601873085,-500.0,0.00039726,30]
[313715663,1707601873094,-712.78,0.00039726,30]
[313715664,1707601873104,-737.99,0.00039726,30]
[313715665,1707601873114,-599.27,0.00039726,30]
[313715666,1707601873123,-753.18,0.00039726,30]
[313715667,1707601873133,-500.0,0.00039726,30]
[313715668,1707601873143,-628.23,0.00039726,30]
[313715669,1707601873154,-545.39,0.00039726,2]
[313715670,1707601873163,-500.0,0.00039726,30]
[313715671,1707601873173,-500.0,0.00039726,30]
[313715672,1707601873183,-882.01,0.00039726,30]
[313715673,1707601873192,-255.54514679,0.00039726,30]
[313715674,1707601873203,-500.0,0.00039726,2]
[313715675,1707601873212,-523.82,0.00039726,30]
[313715676,1707601873222,-500.0,0.00039726,30]
[313715677,1707601873231,-500.0,0.00039726,30]
[313715678,1707601873241,-599.85,0.00039726,30]
[313715679,1707601873251,-788.52,0.00039726,30]
[313715680,1707601873261,-500.0,0.00039726,30]
[313715681,1707601873271,-500.0,0.00039726,30]
[313715682,1707601873282,-500.0,0.00039726,30]
[313715683,1707601873292,-1000.0,0.00039726,120]
[313715684,1707601873302,-500.0,0.00039726,30]
[313715685,1707601873312,-500.0,0.00039726,30]
[313715686,1707601873325,-500.0,0.00039726,30]
[313715687,1707601873335,-773.2,0.00039726,30]
[313715688,1707601873345,-500.0,0.00039726,30]
[313715689,1707601873355,-500.0,0.00039726,30]
[313715690,1707601873365,-1084.51,0.00039726,30]
[313715691,1707601873374,-500.0,0.00039726,30]
[313715692,1707601873384,-520.12,0.00039726,30]
[313715693,1707601873394,-500.0,0.00039726,30]
[313715694,1707601873405,-656.96,0.00039726,30]
[313715695,1707601873414,-535.91,0.00039726,30]
[313715696,1707601873425,-500.0,0.00039726,30]
[313715697,1707601873434,-288.10146212,0.00039726,30]
[313715698,1707601873444,-867.54,0.00039726,30]
[313715699,1707601873454,-610.9,0.00039726,30]
[313715700,1707601873464,-500.0,0.00039726,30]
[313715701,1707601873475,-651.27,0.00039726,30]
[313715702,1707601873485,-784.86,0.00039726,30]
[313715703,1707601873496,-348.47548276,0.00039726,30]
[313715704,1707601873506,-500.0,0.00039726,30]
[313715705,1707601873516,-500.0,0.00039726,30]
[313715706,1707601873526,-500.0,0.00039726,30]
[313715707,1707601873536,-500.0,0.00039726,30]
[313715708,1707601873545,-500.0,0.00039726,30]
[313715709,1707601873555,-500.0,0.00039726,30]
[313715710,1707601873566,-592.08,0.00039726,30]
[313715711,1707601873577,-500.0,0.00039726,30]
[313715712,1707601873590,-569.01,0.00039726,30]
[313715713,1707601873601,-974.04,0.00039726,30]
[313715714,1707601873610,-542.53,0.00039726,30]
[313715715,1707601873620,-500.0,0.00039726,30]
[313715716,1707601873630,-514.14,0.00039726,30]
[313715717,1707601873640,-834.72,0.00039726,30]
[313715718,1707601873650,-500.0,0.00039726,30]
[313715719,1707601873663,-500.0,0.00039726,30]
[313715720,1707601873674,-784.17,0.00039726,30]
[313715721,1707601873684,-561.24,0.00039726,30]
[313715722,1707601873694,-500.0,0.00039726,30]
[313715723,1707601873704,-500.0,0.00039726,30]
[313715724,1707601873714,-632.71,0.00039726,30]
[313715725,1707601873724,-728.89,0.00039726,30]
[313715726,1707601873734,-500.0,0.00039726,30]
[313715727,1707601873745,-822.96,0.00039726,30]
[313715728,1707601873756,-500.0,0.00039726,30]
[313715729,1707601873766,-521.18,0.00039726,30]
[313715730,1707601873775,-635.8,0.00039726,30]
[313715731,1707601873785,-500.0,0.00039726,30]
[313715732,1707601873794,-736.74,0.00039726,30]
[313715733,1707601873804,-500.0,0.00039726,30]
[313715734,1707601873814,-500.0,0.00039726,30]
[313715735,1707601873825,-500.0,0.00039726,30]
[313715736,1707601873835,-500.0,0.00039726,30]
[313715737,1707601873845,-500.0,0.00039726,30]
[313715738,1707601873855,-1379.06,0.00039726,30]
[313715739,1707601873865,-679.06,0.00039726,30]
[313715740,1707601873875,-500.0,0.00039726,30]
[313715741,1707601873886,-500.0,0.00039726,30]
[313715742,1707601873896,-500.0,0.00039726,30]
[313715743,1707601873905,-500.0,0.00039726,30]
[313715744,1707601873915,-1217.08,0.00039726,30]
[313715745,1707601873925,-500.0,0.00039726,30]
[313715746,1707601873935,-778.92,0.00039726,30]
[313715747,1707601873946,-500.0,0.00039726,30]
[313715748,1707601873956,-500.0,0.00039726,30]
[313715749,1707601873967,-810.84,0.00039726,30]
[313715750,1707601873977,-500.0,0.00039726,30]
[313715751,1707601873987,-1841.8,0.00039726,30]
[313715752,1707601873997,-500.0,0.00039726,30]
[313715753,1707601874007,-500.0,0.00039726,30]
[313715754,1707601874016,-500.0,0.00039726,30]
[313715755,1707601874026,-1857.97,0.00039726,30]
[313715756,1707601874037,-500.0,0.00039726,30]
[313715757,1707601874047,-500.0,0.00039726,30]
[313715758,1707601874057,-549.96,0.00039726,2]
[313715759,1707601874066,-1015.73,0.00039726,30]
[313715760,1707601874077,-889.74,0.00039726,30]
[313715761,1707601874087,-500.0,0.00039726,30]
[313715762,1707601874096,-500.0,0.00039726,30]
[313715763,1707601874105,-639.74,0.00039726,30]
[313715764,1707601874114,-500.0,0.00039726,30]
[313715765,1707601874124,-561.28,0.00039726,30]
[313715766,1707601874133,-500.0,0.00039726,30]
[313715767,1707601874143,-535.82,0.00039726,30]
[313715768,1707601874397,-500.0,0.00039726,30]
[313715769,1707601874408,-1302.06,0.00039726,30]
[313715770,1707601874418,-1316.65,0.00039726,30]
[313715771,1707601874428,-500.0,0.00039726,30]
[313715772,1707601874437,-545.85883992,0.00039726,30]
[313715773,1707601874447,-1662.06,0.00039726,30]
[313715774,1707601874456,-500.0,0.00039726,30]
[313715775,1707601874467,-500.0,0.00039726,30]
[313715776,1707601874476,-557.17,0.00039726,30]
[313715777,1707601874486,-574.72,0.00039726,30]
[313715778,1707601874496,-500.0,0.00039726,30]
[313715779,1707601874505,-500.0,0.00039726,30]
[313715780,1707601874516,-500.0,0.00039726,30]
[313715781,1707601874525,-500.0,0.00039726,30]
[313715782,1707601874534,-3039.75,0.00039726,30]
[313715783,1707601874544,-500.0,0.00039726,30]
[313715784,1707601874553,-641.81,0.00039726,30]
[313715785,1707601874563,-500.0,0.00039726,30]
[313715786,1707601874573,-820.4,0.00039726,30]
[313715787,1707601874593,-500.0,0.00039726,30]
[313715788,1707601874602,-500.0,0.00039726,30]
[313715789,1707601874614,-531.75,0.00039726,30]
[313715790,1707601874625,-1352.04,0.00039726,30]
[313715791,1707601874635,-519.24,0.00039726,30]
[313715792,1707601874647,-489.8,0.00039726,30]
[313715793,1707601874658,-500.0,0.00039726,30]
[313715794,1707601874667,-561.05,0.00039726,30]
[313715795,1707601874678,-693.34,0.00039726,30]
[313715796,1707601874688,-3416.57,0.00039726,30]
[313715797,1707601874711,-500.0,0.00039726,30]
[313715798,1707601874721,-551.85,0.00039726,30]
[313715799,1707601874732,-641.02,0.00039726,30]
[313715800,1707601874743,-523.22,0.00039726,30]
[313715801,1707601874753,-642.83,0.00039726,30]
[313715802,1707601874764,-500.0,0.00039726,30]
[313715803,1707601874773,-500.0,0.00039726,30]
[313715804,1707601874782,-500.0,0.00039726,30]
[313715805,1707601874792,-500.0,0.00039726,30]
[313715806,1707601874802,-220.21,0.00039726,30]
[313715807,1707601874811,-500.0,0.00039726,30]
[313715808,1707601874822,-878.41,0.00039726,30]
[313715809,1707601874831,-500.0,0.00039726,30]
[313715810,1707601874840,-1509.53,0.00039726,30]
[313715811,1707601874849,-500.0,0.00039726,30]
[313715812,1707601874858,-863.6,0.00039726,5]
[313715813,1707601874868,-205.15005111,0.00039726,30]
[313715814,1707601874878,-500.0,0.00039726,30]
[313715815,1707601874887,-1068.6,0.00039726,30]
[313715816,1707601874897,-500.0,0.00039726,30]
[313715817,1707601874906,-500.0,0.00039726,30]
[313715818,1707601874916,-981.77,0.00039726,30]
[313715819,1707601874925,-500.0,0.00039726,30]
[313715820,1707601874935,-2683.19,0.00039726,30]
[313715821,1707601874944,-500.0,0.00039726,30]
[313715822,1707601874954,-500.0,0.00039726,30]
[313715823,1707601874963,-500.0,0.00039726,30]
[313715824,1707601874973,-828.45,0.00039726,30]
[313715825,1707601874983,-1734.41,0.00039726,30]
[313715826,1707601874992,-500.0,0.00039726,30]
[313715827,1707601875001,-500.0,0.00039726,30]
[313715828,1707601875011,-2401.7,0.00039726,30]
[313715829,1707601875020,-500.0,0.00039726,30]
[313715830,1707601875030,-500.0,0.00039726,30]
[313715831,1707601875039,-1796.69,0.00039726,30]
[313715832,1707601875049,-500.0,0.00039726,30]
[313715833,1707601875059,-635.08,0.00039726,30]
[313715834,1707601875069,-558.32,0.00039726,30]
[313715835,1707601875078,-500.0,0.00039726,30]
[313715836,1707601875088,-668.46,0.00039726,30]
[313715837,1707601875098,-2258.53,0.00039726,30]
[313715838,1707601875108,-500.0,0.00039726,30]
[313715839,1707601875117,-1436.75,0.00039726,30]
[313715840,1707601875126,-500.0,0.00039726,30]
[313715841,1707601875136,-500.0,0.00039726,30]
[313715842,1707601875146,-630.77,0.00039726,30]
[313715843,1707601875156,-1973.1,0.00039726,30]
[313715844,1707601875167,-500.0,0.00039726,30]
[313715845,1707601875177,-3251.25,0.00039726,30]
[313715846,1707601875187,-1594.12,0.00039726,30]
[313715847,1707601875197,-4524.13,0.00039726,30]
[313715848,1707601875207,-624.13,0.00039726,30]
[313715849,1707601875217,-544.25,0.00039726,30]
[313715850,1707601875226,-500.0,0.00039726,30]
[313715851,1707601875236,-503.66848278,0.00039726,30]
[313715852,1707601875247,-500.0,0.00039726,30]
[313715853,1707601875257,-500.0,0.00039726,30]
[313715854,1707601875266,-500.0,0.00039726,30]
[313715855,1707601875275,-500.0,0.00039726,30]
[313715856,1707601875285,-1257.23,0.00039726,30]
[313715857,1707601875295,-500.0,0.00039726,30]
[313715858,1707601875304,-500.0,0.00039726,30]
[313715859,1707601875314,-500.0,0.00039726,30]
[313715860,1707601875325,-2240.69,0.00039726,30]
[313715861,1707601875334,-500.0,0.00039726,30]
[313715862,1707601875344,-500.0,0.00039726,30]
[313715863,1707601875354,-500.0,0.00039726,30]
[313715864,1707601875364,-500.0,0.00039726,30]
[313715865,1707601875374,-500.0,0.00039726,30]
[313715866,1707601875384,-487.36559712,0.00039726,30]
[313715867,1707601875394,-500.0,0.00039726,30]
[313715868,1707601875404,-500.0,0.00039726,30]
[313715869,1707601875414,-500.0,0.00039726,30]
[313715870,1707601875426,-500.0,0.00039726,30]
[313715871,1707601875437,-2274.07,0.00039726,30]
[313715872,1707601875446,-500.0,0.00039726,30]
[313715873,1707601875456,-500.0,0.00039726,30]
[313715874,1707601875465,-500.0,0.00039726,30]
[313715875,1707601875475,-500.0,0.00039726,30]
[313715876,1707601875484,-1307.77,0.00039726,30]
[313715877,1707601875493,-500.0,0.00039726,2]
[313715878,1707601875503,-1625.66,0.00039726,30]
[313715879,1707601875513,-500.0,0.00039726,30]
[313715880,1707601875521,-500.0,0.00039726,30]
[313715881,1707601875531,-500.0,0.00039726,30]
[313715882,1707601875541,-1329.42,0.00039726,30]
[313715883,1707601875551,-528.28,0.00039726,30]
[313715884,1707601875562,-1334.71,0.00039726,30]
[313715885,1707601875575,-1376.47,0.00039726,30]
[313715886,1707601875585,-881.37,0.00039726,30]
[313715887,1707601875595,-500.0,0.00039726,30]
[313715888,1707601875606,-500.0,0.00039726,30]
[313715889,1707601875616,-616.58,0.00039726,30]
[313715890,1707601875626,-500.0,0.00039726,30]
[313715891,1707601875636,-500.0,0.00039726,30]
[313715892,1707601875646,-500.0,0.00039726,2]
[313715893,1707601875656,-500.0,0.00039726,30]
[313715894,1707601875668,-2669.57,0.00039726,30]
[313715895,1707601875678,-500.0,0.00039726,30]
[313715896,1707601875688,-577.16,0.00039726,2]
[313715897,1707601875698,-1078.4,0.00039726,30]
[313715898,1707601875708,-2323.02,0.00039726,30]
[313715899,1707601875718,-500.0,0.00039726,30]
[313715900,1707601875728,-4587.53,0.00039726,30]
[313715901,1707601875737,-943.15,0.00039726,30]
[313715902,1707601875747,-743.65,0.00039726,30]
[313715903,1707601875758,-744.84,0.00039726,30]
[313715904,1707601875767,-500.0,0.00039726,30]
[313715905,1707601875777,-932.41,0.00039726,30]
[313715906,1707601875787,-500.0,0.00039726,30]
[313715907,1707601875796,-1206.69,0.00039726,30]
[313715908,1707601875806,-500.0,0.00039726,30]
[313715909,1707601875816,-500.0,0.00039726,30]
[313715910,1707601875827,-4530.38,0.00039726,30]
[313715911,1707601875837,-1707.67,0.00039726,30]
[313715912,1707601875847,-500.0,0.00039726,30]
[313715913,1707601875857,-500.0,0.00039726,30]
[313715914,1707601875867,-500.0,0.00039726,30]
[313715915,1707601875876,-500.0,0.00039726,30]
[313715916,1707601875886,-500.0,0.00039726,30]
[313715917,1707601875896,-526.81,0.00039726,30]
[313715918,1707601875905,-500.0,0.00039726,30]
[313715919,1707601875916,-1406.78,0.00039726,30]
[313715920,1707601875925,-500.0,0.00039726,30]
[313715921,1707601875934,-647.73,0.00039726,30]
[313715922,1707601875943,-1864.35,0.00039726,30]
[313715923,1707601875953,-500.0,0.00039726,30]
[313715924,1707601875962,-500.0,0.00039726,30]
[313715925,1707601875972,-1519.09,0.00039726,30]
[313715926,1707601875981,-500.0,0.00039726,30]
[313715927,1707601875992,-1039.09,0.00039726,30]
[313715928,1707601876001,-1508.38,0.00039726,30]
[313715929,1707601876011,-523.71,0.00039726,30]
[313715930,1707601876020,-1290.83,0.00039726,30]
[313715931,1707601876030,-574.9,0.00039726,30]
[313715932,1707601876040,-532.0,0.00039726,30]
[313715933,1707601876049,-500.0,0.00039726,30]
[313715934,1707601876059,-1239.46,0.00039726,30]
[313715935,1707601876068,-607.24,0.00039726,30]
[313715936,1707601876079,-769.27,0.00039726,30]
[313715937,1707601876089,-290.93766975,0.00039726,30]
[313715938,1707601876098,-1594.59,0.00039726,30]
[313715939,1707601876108,-1293.56,0.00039726,30]
[313715940,1707601876118,-1374.11,0.00039726,30]
[313715941,1707601876127,-572.05,0.00039726,30]
[313715942,1707601876136,-846.98,0.00039726,30]
[313715943,1707601876145,-2406.41,0.00039726,30]
[313715944,1707601876155,-500.0,0.00039726,30]
[313715945,1707601876165,-2927.06,0.00039726,30]
[313715946,1707601876174,-236.16,0.00039726,30]
[313715947,1707601876184,-500.0,0.00039726,30]
[313715948,1707601876193,-642.45,0.00039726,30]
[313715949,1707601876203,-500.0,0.00039726,30]
[313715950,1707601876213,-2633.36,0.00039726,30]
[313715951,1707601876223,-683.9,0.00039726,30]
[313715952,1707601876234,-500.0,0.00039726,30]
[313715953,1707601876244,-500.0,0.00039726,30]
[313715954,1707601876254,-1941.25,0.00039726,30]
[313715955,1707601876265,-500.0,0.00039726,30]
[313715956,1707601876275,-800.43,0.00039726,30]
[313715957,1707601876285,-500.0,0.00039726,30]
[313715958,1707601876297,-1008.96,0.00039726,30]
[313715959,1707601876309,-500.0,0.00039726,30]
[313715960,1707601876318,-500.0,0.00039726,30]
[313715961,1707601876343,-500.0,0.00039726,30]
[313715962,1707601876352,-1919.56,0.00039726,30]
[313715963,1707601876375,-3274.17,0.00039726,30]
[313715964,1707601876385,-533.09,0.00039726,30]
[313715965,1707601876398,-565.81,0.00039726,30]
[313715966,1707601876412,-500.0,0.00039726,30]
[313715967,1707601876422,-1427.37,0.00039726,30]
[313715968,1707601876433,-500.0,0.00039726,30]
[313715969,1707601876444,-500.0,0.00039726,30]
[313715970,1707601876465,-888.4,0.00039726,30]
[313715971,1707601876476,-500.0,0.00039726,30]
[313715972,1707601876486,-558.56,0.00039726,30]
[313715973,1707601876497,-640.36523179,0.00039726,30]
[313715974,1707601876507,-500.0,0.00039726,30]
[313715975,1707601876517,-2572.05,0.00039726,30]
[313715976,1707601876530,-1220.73,0.00039726,30]
[313715977,1707601876540,-1202.85,0.00039726,30]
[313715978,1707601876551,-2269.39,0.00039726,30]
[313715979,1707601876563,-960.75,0.00039726,30]
[313715980,1707601876574,-500.0,0.00039726,30]
[313715981,1707601876585,-500.0,0.00039726,30]
[313715982,1707601876596,-762.82,0.00039726,30]
[313715983,1707601876606,-551.31,0.00039726,30]
[313715984,1707601876617,-896.5,0.00039726,30]
[313715985,1707601876627,-629.98,0.00039726,30]
[313715986,1707601876637,-374.01864183,0.00039726,30]
[313715987,1707601876647,-2391.63,0.00039726,30]
[313715988,1707601876657,-689.25,0.00039726,30]
[313715989,1707601876667,-2559.04,0.00039726,30]
[313715990,1707601876678,-1838.86,0.00039726,30]
[313715991,1707601876687,-500.0,0.00039726,30]
[313715992,1707601876698,-500.0,0.00039726,30]
[313715993,1707601876709,-1498.61,0.00039726,30]
[313715994,1707601876719,-352.28,0.00039726,30]
[313715995,1707601876729,-500.0,0.00039726,30]
[313715996,1707601876739,-500.0,0.00039726,30]
[313715997,1707601876749,-1021.32,0.00039726,30]
[313715998,1707601876762,-1365.79,0.00039726,5]
[313715999,1707601876781,-514.47,0.00039726,30]
[313716000,1707601876801,-612.67,0.00039726,30]
[313716001,1707601876812,-500.0,0.00039726,30]
[313716002,1707601876834,-500.0,0.00039726,30]
[313716003,1707601876847,-586.91,0.00039726,30]
[313716004,1707601876859,-1186.41,0.00039726,30]
[313716005,1707601876872,-152.0,0.00039785,30]
[313716006,1707601876883,-150.0,0.00039788,2]
[313716007,1707601876894,-419.83,0.00039794,2]
[313716008,1707601876923,-150.0,0.00039797,2]
[313716009,1707601876935,-200.0,0.000398,14]
[313716010,1707601876949,-150.0,0.000398,29]
[313716011,1707601876961,-290.97882579,0.00039811,2]
[313716012,1707601876972,-153.7803214,0.00039826,7]
[313716013,1707601876990,-153.81499,0.00039829,2]
[313716014,1707601877001,-920.17591691,0.0003983,2]
[313716015,1707601877011,-155.01257736,0.00039886,7]
[313716016,1707601877022,-200.0,0.000399,14]
[313716017,1707601877032,-500.0,0.00039908,2]
[313716018,1707601877041,-150.0,0.00039942,2]
[313716019,1707601877056,-522.13,0.00039956,7]
[313716020,1707601877078,-522.13,0.00039956,7]
[313716021,1707601877087,-400.00000002,0.0003999,17]
[313716022,1707601877097,-3986.0,0.0003999,2]
[313716023,1707601877107,-2472.0,0.0003999,2]
[313716024,1707601877116,-153.7803214,0.00039996,7]
[313716025,1707601877126,-255.0,0.0004,12]
[313716026,1707601877136,-3200.0,0.0004,4]
[313716027,1707601877146,-155.0,0.0004,4]
[313716028,1707601877156,-19002.85030018,0.0004,5]
[313716029,1707601877166,-194.63875294,0.0004,2]
[313716030,1707601877175,-572.34268146,0.0004,4]
[313716031,1707601877186,-446.90873899,0.0004,4]
[313716032,1707601877196,-22156.02815364,0.0004,4]
[313716033,1707601877205,-155.0,0.0004,4]
[313716034,1707601877214,-68227.0441533,0.0004,4]
[313716035,1707601877224,-5000.0,0.0004,30]
[313716036,1707601877234,-155.46486245,0.0004,4]
[313716037,1707601877244,-2283.00079022,0.0004,4]
[313716038,1707601877254,-1090.50891665,0.0004,4]
[313716039,1707601877264,-4376.99971602,0.0004,4]
[313716040,1707601877273,-9861.90542344,0.0004,4]
[313716041,1707601877283,-515.79576364,0.0004,30]
[313716042,1707601877292,-1090.30859904,0.0004,10]
[313716043,1707601877302,-200.0,0.0004,16]
[313716044,1707601877312,-255.0,0.0004,12]
[313716045,1707601877321,-200.0,0.0004,30]